fUSD/lending_fUSD_20260516
["ID","MTS","AMOUNT","RATE_DAILY","PERIOD"]
[422432932,1778944246000,-2000.0,0.00021373,2]
[422432930,1778944246000,-2000.0,0.00021373,2]
[422432931,1778944246000,-2000.0,0.00021373,2]
[422432919,1778944246000,-2000.0,0.00021373,2]
[422432902,1778944246000,-2000.0,0.00021371,2]
[422432933,1778944246000,-2000.0,0.00021373,2]
[422432900,1778944246000,-2000.0,0.00021371,2]
[422432903,1778944246000,-2000.0,0.00021371,2]
[422432881,1778944246000,-340.951159,0.00021319,2]
[422432879,1778944246000,-340.951159,0.00021319,2]
[422432875,1778944246000,-6722.9305067,0.00021319,2]
[422432877,1778944246000,-151.0,0.00021319,2]
[422432876,1778944246000,-151.0,0.00021319,2]
[422432880,1778944246000,-340.951159,0.00021319,2]
[422432882,1778944246000,-200.0,0.00021355,2]
[422432885,1778944246000,-6463.45,0.0002137,2]
[422432887,1778944246000,-2000.0,0.00021371,2]
[422432886,1778944246000,-2000.0,0.00021371,2]
[422432884,1778944246000,-2884.75459676,0.00021355,2]
[422432888,1778944246000,-2000.0,0.00021371,2]
[422432890,1778944246000,-2000.0,0.00021371,2]
[422432871,1778944246000,-2476.23,0.00021273,2]
[422432889,1778944246000,-2000.0,0.00021371,2]
[422432883,1778944246000,-200.0,0.00021355,2]
[422432899,1778944246000,-2000.0,0.00021371,2]
[422432897,1778944246000,-2000.0,0.00021371,2]
[422432898,1778944246000,-2000.0,0.00021371,2]
[422432895,1778944246000,-2000.0,0.00021371,2]
[422432907,1778944246000,-1600.0,0.00021372,2]
[422432901,1778944246000,-2000.0,0.00021371,2]
[422432896,1778944246000,-2000.0,0.00021371,2]
[422432893,1778944246000,-2000.0,0.00021371,2]
[422432892,1778944246000,-2000.0,0.00021371,2]
[422432894,1778944246000,-2000.0,0.00021371,2]
[422432891,1778944246000,-2000.0,0.00021371,2]
[422432906,1778944246000,-161.0,0.00021372,2]
[422432975,1778944247000,-2000.0,0.00021867,2]
[422432973,1778944247000,-2000.0,0.00021867,2]
[422432963,1778944247000,-464.76109,0.00021542,2]
[422432972,1778944247000,-1663.02,0.00021842,2]
[422432970,1778944247000,-417.0,0.00021805,2]
[422432969,1778944247000,-1223.0,0.00021805,2]
[422432968,1778944247000,-1350.0,0.00021745,7]
[422432967,1778944247000,-950.0,0.00021745,2]
[422432964,1778944247000,-474.86394109,0.00021547,2]
[422432971,1778944247000,-3631.0,0.00021805,2]
[422432985,1778944247000,-200.0,0.00021903,2]
[422432980,1778944247000,-621.78829552,0.00021901,2]
[422432977,1778944247000,-2000.0,0.00021867,2]
[422432974,1778944247000,-2000.0,0.00021867,2]
[422432978,1778944247000,-2000.0,0.00021867,2]
[422432976,1778944247000,-2000.0,0.00021867,2]
[422432965,1778944247000,-648.503498,0.00021558,2]
[422432979,1778944247000,-2000.0,0.00021867,2]
[422432982,1778944247000,-712.63107374,0.00021901,2]
[422432983,1778944247000,-200.0,0.00021903,2]
[422432981,1778944247000,-500.0,0.00021901,2]
[422432990,1778944247000,-151.0,0.00021918,2]
[422432996,1778944247000,-151.0,0.00021918,2]
[422432994,1778944247000,-151.0,0.00021918,2]
[422432986,1778944247000,-2991.49051684,0.00021903,2]
[422432966,1778944247000,-2500.0,0.00021745,2]
[422432956,1778944247000,-151.0,0.000215,2]
[422432955,1778944247000,-151.0,0.000215,2]
[422432993,1778944247000,-165.407147,0.00021918,2]
[422432938,1778944247000,-2000.0,0.00021375,2]
[422432934,1778944247000,-2000.0,0.00021373,2]
[422432935,1778944247000,-2000.0,0.00021373,2]
[422432939,1778944247000,-2000.0,0.00021375,2]
[422432936,1778944247000,-2000.0,0.00021375,2]
[422432937,1778944247000,-2000.0,0.00021375,2]
[422432940,1778944247000,-2000.0,0.00021375,2]
[422432942,1778944247000,-2000.0,0.00021375,2]
[422432943,1778944247000,-2000.0,0.00021375,2]
[422432944,1778944247000,-2000.0,0.00021375,2]
[422432949,1778944247000,-3543.0,0.00021442,2]
[422432941,1778944247000,-2000.0,0.00021375,2]
[422432950,1778944247000,-1354.0,0.00021442,2]
[422432951,1778944247000,-150.0,0.00021442,2]
[422432945,1778944247000,-2000.0,0.00021375,2]
[422432947,1778944247000,-225.13240197,0.00021404,2]
[422432953,1778944247000,-48419.66894767,0.000215,2]
[422432958,1778944247000,-1158.867927,0.000215,2]
[422432954,1778944247000,-225.14220559,0.000215,2]
[422432952,1778944247000,-1270.0,0.00021442,2]
[422432959,1778944247000,-1158.867927,0.000215,2]
[422432957,1778944247000,-151.0,0.000215,2]
[422432961,1778944247000,-1158.867927,0.000215,2]
[422432960,1778944247000,-1158.867927,0.000215,2]
[422432962,1778944247000,-2312.0,0.0002154,2]
[422432946,1778944247000,-2312.0,0.000214,2]
[422432991,1778944247000,-151.0,0.00021918,2]
[422432989,1778944247000,-5000.0,0.00021918,2]
[422433022,1778944247000,-198.911634,0.00022,2]
[422433033,1778944247000,-150.0,0.00022155,9]
[422433025,1778944247000,-198.911634,0.00022,2]
[422433026,1778944247000,-151.0,0.00022,2]
[422433027,1778944247000,-313.0,0.00022,2]
[422433028,1778944247000,-217.0,0.00022,2]
[422433029,1778944247000,-736.0,0.00022,2]
[422433030,1778944247000,-1105.0,0.00022,2]
[422433031,1778944247000,-152.0,0.00022072,7]
[422433032,1778944247000,-243.63814301,0.0002211,2]
[422433034,1778944247000,-1576.38462,0.00022189,14]
[422433036,1778944247000,-500.0,0.00022266,2]
[422433038,1778944247000,-150.0,0.00022307,2]
[422433042,1778944247000,-150.0,0.00022307,2]
[422433035,1778944247000,-225.13240197,0.0002226,2]
[422433045,1778944247000,-150.0,0.00022307,2]
[422433041,1778944247000,-150.0,0.00022307,2]
[422433044,1778944247000,-150.0,0.00022307,2]
[422433040,1778944247000,-150.0,0.00022307,2]
[422433039,1778944247000,-150.0,0.00022307,2]
[422433043,1778944247000,-150.0,0.00022307,2]
[422433046,1778944247000,-150.0,0.00022307,2]
[422433047,1778944247000,-150.0,0.00022307,2]
[422433048,1778944247000,-150.0,0.00022307,2]
[422432997,1778944247000,-900.0,0.00021918,2]
[422433024,1778944247000,-198.911634,0.00022,2]
[422433023,1778944247000,-198.911634,0.00022,2]
[422433037,1778944247000,-303.588141,0.00022299,14]
[422433020,1778944247000,-151.0,0.00022,2]
[422432992,1778944247000,-151.0,0.00021918,2]
[422433018,1778944247000,-450.0,0.00022,2]
[422432987,1778944247000,-289.0529305,0.00021918,3]
[422432988,1778944247000,-3074.97,0.00021918,2]
[422432995,1778944247000,-151.0,0.00021918,2]
[422432998,1778944247000,-900.0,0.00021918,2]
[422433009,1778944247000,-800.0,0.00021918,2]
[422432999,1778944247000,-900.0,0.00021918,2]
[422433001,1778944247000,-900.0,0.00021918,2]
[422433003,1778944247000,-900.0,0.00021918,2]
[422433004,1778944247000,-900.0,0.00021918,2]
[422433002,1778944247000,-900.0,0.00021918,2]
[422433007,1778944247000,-800.0,0.00021918,2]
[422433000,1778944247000,-900.0,0.00021918,2]
[422433014,1778944247000,-394.0,0.00022,2]
[422433006,1778944247000,-800.0,0.00021918,2]
[422433008,1778944247000,-800.0,0.00021918,2]
[422433010,1778944247000,-800.0,0.00021918,2]
[422433019,1778944247000,-119876.40162128,0.00022,4]
[422433015,1778944247000,-313.0,0.00022,2]
[422433021,1778944247000,-151.0,0.00022,2]
[422433013,1778944247000,-1000.0,0.00022,2]
[422433011,1778944247000,-800.0,0.00021918,2]
[422433012,1778944247000,-800.0,0.00021918,2]
[422433005,1778944247000,-800.0,0.00021918,2]
[422433017,1778944247000,-576.0,0.00022,2]
[422433016,1778944247000,-179.0,0.00022,2]
[422433088,1778944248000,-462.3,0.00024174,2]
[422433095,1778944248000,-350.0,0.00024397,2]
[422433078,1778944248000,-1000.0,0.00024,2]
[422433089,1778944248000,-1462.64,0.00024174,2]
[422433090,1778944248000,-3753.39752942,0.0002421,2]
[422433086,1778944248000,-736.0,0.00024,2]
[422433084,1778944248000,-313.0,0.00024,2]
[422433085,1778944248000,-217.0,0.00024,2]
[422433083,1778944248000,-500.0,0.00024,2]
[422433094,1778944248000,-1405.9,0.00024324,2]
[422433093,1778944248000,-151.0,0.00024271,2]
[422433087,1778944248000,-350.0,0.00024101,3]
[422433092,1778944248000,-151.0,0.00024271,2]
[422433103,1778944248000,-500.0,0.00024452,30]
[422433096,1778944248000,-3543.0,0.00024442,2]
[422433097,1778944248000,-1354.0,0.00024442,2]
[422433098,1778944248000,-150.0,0.00024442,2]
[422433107,1778944248000,-323.40347551,0.00024551,2]
[422433099,1778944248000,-1270.0,0.00024442,2]
[422433101,1778944248000,-500.0,0.00024452,30]
[422433105,1778944248000,-244.52414844,0.00024466,30]
[422433106,1778944248000,-161.0,0.000245,3]
[422433100,1778944248000,-500.0,0.00024452,30]
[422433102,1778944248000,-500.0,0.00024452,30]
[422433104,1778944248000,-500.0,0.00024452,30]
[422433108,1778944248000,-11578.0,0.000246,2]
[422433081,1778944248000,-179.0,0.00024,2]
[422433091,1778944248000,-350.0,0.00024232,2]
[422433079,1778944248000,-394.0,0.00024,2]
[422433056,1778944248000,-150.0,0.00022977,9]
[422433080,1778944248000,-313.0,0.00024,2]
[422433110,1778944248000,-524.40294489,0.0002464,2]
[422433055,1778944248000,-150.0,0.00022703,9]
[422433058,1778944248000,-394.0,0.00023,2]
[422433053,1778944248000,-1507.59,0.00022466,2]
[422433057,1778944248000,-1000.0,0.00023,2]
[422433054,1778944248000,-180.48177615,0.00022652,2]
[422433049,1778944248000,-625.0,0.00022307,2]
[422433051,1778944248000,-150.0,0.00022429,9]
[422433050,1778944248000,-1405.9,0.00022353,2]
[422433059,1778944248000,-313.0,0.00023,2]
[422433060,1778944248000,-179.0,0.00023,2]
[422433071,1778944248000,-152.0,0.00023129,30]
[422433061,1778944248000,-576.0,0.00023,2]
[422433082,1778944248000,-576.0,0.00024,2]
[422433070,1778944248000,-152.0,0.00023129,30]
[422433062,1778944248000,-412.0,0.00023,2]
[422433064,1778944248000,-217.0,0.00023,2]
[422433066,1778944248000,-736.0,0.00023,2]
[422433065,1778944248000,-200.0,0.00023,2]
[422433069,1778944248000,-225.13240197,0.00023116,2]
[422433068,1778944248000,-1614.34617285,0.00023023,2]
[422433067,1778944248000,-1508.06668026,0.00023,2]
[422433073,1778944248000,-261.99015905,0.00023489,30]
[422433077,1778944248000,-225.13240197,0.00023973,2]
[422433075,1778944248000,-1663.02,0.00023684,2]
[422433074,1778944248000,-190.29322813,0.00023525,9]
[422433072,1778944248000,-150.0,0.00023251,9]
[422433076,1778944248000,-180.32566322,0.00023809,2]
[422433063,1778944248000,-313.0,0.00023,2]
[422433111,1778944248000,-2094.4946777,0.00024649,2]
[422433052,1778944248000,-1755.33,0.00022466,2]
[422433116,1778944248000,-151.0,0.00024658,2]
[422433139,1778944248000,-829.0,0.00024789,10]
[422433140,1778944248000,-2882.0,0.00024789,10]
[422433148,1778944248000,-199.293253,0.000249,2]
[422433158,1778944248000,-1760.34,0.00024946,7]
[422433149,1778944248000,-199.293253,0.000249,2]
[422433159,1778944248000,-1759.43,0.00024946,7]
[422433150,1778944248000,-151.0,0.000249,2]
[422433147,1778944248000,-151.0,0.000249,2]
[422433151,1778944248000,-151.0,0.000249,2]
[422433152,1778944248000,-199.293253,0.000249,2]
[422433155,1778944248000,-151.0,0.000249,2]
[422433157,1778944248000,-275.58926332,0.00024931,2]
[422433154,1778944248000,-199.293253,0.000249,2]
[422433145,1778944248000,-225.13240197,0.00024829,2]
[422433153,1778944248000,-151.0,0.000249,2]
[422433161,1778944248000,-1027.02196,0.0002495,2]
[422433160,1778944248000,-1760.3,0.00024946,7]
[422433171,1778944248000,-150.0,0.00024999,2]
[422433163,1778944248000,-1027.02197,0.0002495,2]
[422433165,1778944248000,-1027.02197,0.0002495,2]
[422433166,1778944248000,-1027.02196,0.0002495,2]
[422433164,1778944248000,-1027.02196,0.0002495,2]
[422433169,1778944248000,-151.0,0.00024997,7]
[422433162,1778944248000,-1027.02196,0.0002495,2]
[422433170,1778944248000,-151.0,0.00024997,7]
[422433168,1778944248000,-151.0,0.00024997,7]
[422433167,1778944248000,-400.0,0.0002497,2]
[422433172,1778944248000,-1349203.51769762,0.00025,2]
[422433156,1778944248000,-3117.01721664,0.000249,2]
[422433143,1778944248000,-3631.0,0.00024805,2]
[422433115,1778944248000,-1000.0,0.00024658,2]
[422433146,1778944248000,-151.0,0.000249,2]
[422433109,1778944248000,-644.79446246,0.0002464,2]
[422433117,1778944248000,-151.0,0.00024658,2]
[422433113,1778944248000,-151.0,0.00024655,7]
[422433119,1778944248000,-151.0,0.00024658,2]
[422433112,1778944248000,-25165.8177976,0.00024649,2]
[422433118,1778944248000,-151.0,0.00024658,2]
[422433114,1778944248000,-956.2,0.00024658,2]
[422433141,1778944248000,-1223.0,0.00024805,2]
[422433121,1778944248000,-151.0,0.00024658,2]
[422433122,1778944248000,-151.0,0.00024658,2]
[422433131,1778944248000,-500.0,0.00024658,3]
[422433123,1778944248000,-151.0,0.00024658,2]
[422433132,1778944248000,-500.0,0.00024658,3]
[422433124,1778944248000,-151.0,0.00024658,2]
[422433120,1778944248000,-151.0,0.00024658,2]
[422433127,1778944248000,-250.185683,0.00024658,2]
[422433130,1778944248000,-151.0,0.00024658,2]
[422433144,1778944248000,-213.37737141,0.00024814,2]
[422433142,1778944248000,-417.0,0.00024805,2]
[422433136,1778944248000,-1760.3,0.00024658,2]
[422433134,1778944248000,-193.86641471,0.00024658,3]
[422433138,1778944248000,-151.0,0.0002475,2]
[422433135,1778944248000,-1759.43,0.00024658,2]
[422433133,1778944248000,-500.0,0.00024658,3]
[422433125,1778944248000,-250.185683,0.00024658,2]
[422433129,1778944248000,-2408.10803045,0.00024658,2]
[422433126,1778944248000,-250.185683,0.00024658,2]
[422433128,1778944248000,-250.185683,0.00024658,2]
[422433137,1778944248000,-24495.87741852,0.0002475,2]
[422433213,1778944249000,-198.911634,0.00025,2]
[422433221,1778944249000,-151.0,0.00025,2]
[422433211,1778944249000,-151.0,0.00025,2]
[422433214,1778944249000,-198.911634,0.00025,2]
[422433212,1778944249000,-820.001033,0.00025,2]
[422433204,1778944249000,-541.87120042,0.00025,5]
[422433210,1778944249000,-151.0,0.00025,2]
[422433203,1778944249000,-151.0,0.00025,2]
[422433199,1778944249000,-199.293253,0.00025,2]
[422433201,1778944249000,-458.15589909,0.00025,2]
[422433200,1778944249000,-199.451167,0.00025,2]
[422433215,1778944249000,-198.911634,0.00025,2]
[422433220,1778944249000,-151.0,0.00025,2]
[422433235,1778944249000,-261.1828,0.00025,2]
[422433217,1778944249000,-200.0,0.00025,10]
[422433218,1778944249000,-151.0,0.00025,2]
[422433219,1778944249000,-151.0,0.00025,2]
[422433222,1778944249000,-1158.867927,0.00025,2]
[422433234,1778944249000,-373.120199,0.00025,2]
[422433223,1778944249000,-151.0,0.00025,2]
[422433224,1778944249000,-1158.867927,0.00025,2]
[422433225,1778944249000,-1158.867927,0.00025,2]
[422433232,1778944249000,-340.951159,0.00025,2]
[422433226,1778944249000,-1158.867927,0.00025,2]
[422433229,1778944249000,-340.951159,0.00025,2]
[422433228,1778944249000,-194.168,0.00025,12]
[422433233,1778944249000,-340.951159,0.00025,2]
[422433206,1778944249000,-212.94,0.00025,2]
[422433216,1778944249000,-198.911634,0.00025,2]
[422433202,1778944249000,-56617.88213438,0.00025,7]
[422433191,1778944249000,-151.0,0.00025,2]
[422433205,1778944249000,-2279.43219507,0.00025,2]
[422433227,1778944249000,-151.0,0.00025,2]
[422433183,1778944249000,-151.0,0.00025,2]
[422433173,1778944249000,-295.77307124,0.00025,2]
[422433175,1778944249000,-1000.0,0.00025,2]
[422433176,1778944249000,-363.0,0.00025,2]
[422433177,1778944249000,-398.39833639,0.00025,2]
[422433180,1778944249000,-577.27724586,0.00025,2]
[422433174,1778944249000,-309.89157137,0.00025,2]
[422433179,1778944249000,-181.62060025,0.00025,2]
[422433182,1778944249000,-179.7,0.00025,2]
[422433178,1778944249000,-330.24741556,0.00025,2]
[422433181,1778944249000,-179.7,0.00025,2]
[422433184,1778944249000,-151.0,0.00025,2]
[422433198,1778944249000,-151.0,0.00025,2]
[422433195,1778944249000,-151.0,0.00025,2]
[422433185,1778944249000,-152.939565,0.00025,2]
[422433193,1778944249000,-199.293253,0.00025,2]
[422433192,1778944249000,-151.0,0.00025,2]
[422433188,1778944249000,-300.0,0.00025,3]
[422433189,1778944249000,-300.0,0.00025,3]
[422433187,1778944249000,-300.0,0.00025,3]
[422433194,1778944249000,-199.293253,0.00025,2]
[422433190,1778944249000,-300.0,0.00025,3]
[422433197,1778944249000,-199.293253,0.00025,2]
[422433207,1778944249000,-217985.00275169,0.00025,2]
[422433208,1778944249000,-151.0,0.00025,2]
[422433196,1778944249000,-151.0,0.00025,2]
[422433209,1778944249000,-151.0,0.00025,2]
[422433186,1778944249000,-300.0,0.00025,3]
[422433230,1778944249000,-340.951159,0.00025,2]
[422433231,1778944249000,-318.47514207,0.00025,2]
[422433242,1778944249000,-361.895303,0.00025,2]
[422433273,1778944249000,-1540.0,0.00025,3]
[422433264,1778944249000,-207.91673118,0.00025,3]
[422433265,1778944249000,-1540.0,0.00025,3]
[422433270,1778944249000,-1540.0,0.00025,3]
[422433274,1778944249000,-1540.0,0.00025,3]
[422433275,1778944249000,-1540.0,0.00025,3]
[422433276,1778944249000,-151.0,0.00025,2]
[422433278,1778944249000,-1684.50576064,0.00025,3]
[422433277,1778944249000,-1540.0,0.00025,3]
[422433279,1778944249000,-222.380445,0.00025,2]
[422433282,1778944249000,-538.715813,0.00025,2]
[422433280,1778944249000,-151.0,0.00025,2]
[422433283,1778944249000,-151.0,0.00025,2]
[422433267,1778944249000,-1540.0,0.00025,3]
[422433284,1778944249000,-222.380445,0.00025,2]
[422433285,1778944249000,-153.598442,0.00025,2]
[422433286,1778944249000,-538.715813,0.00025,2]
[422433293,1778944249000,-300.0,0.000251,10]
[422433294,1778944249000,-150.0,0.00025307,2]
[422433298,1778944249000,-150.0,0.00025307,2]
[422433295,1778944249000,-150.0,0.00025307,2]
[422433297,1778944249000,-150.0,0.00025307,2]
[422433296,1778944249000,-150.0,0.00025307,2]
[422433291,1778944249000,-163.0,0.00025091,3]
[422433290,1778944249000,-250.185683,0.00025,2]
[422433287,1778944249000,-222.380445,0.00025,2]
[422433292,1778944249000,-350.0,0.00025097,3]
[422433289,1778944249000,-538.715813,0.00025,2]
[422433281,1778944249000,-222.380445,0.00025,2]
[422433269,1778944249000,-1540.0,0.00025,3]
[422433288,1778944249000,-250.185683,0.00025,2]
[422433268,1778944249000,-1540.0,0.00025,3]
[422433245,1778944249000,-361.895303,0.00025,2]
[422433248,1778944249000,-230.255192,0.00025,2]
[422433246,1778944249000,-230.255192,0.00025,2]
[422433236,1778944249000,-373.120199,0.00025,2]
[422433243,1778944249000,-361.895303,0.00025,2]
[422433247,1778944249000,-230.255192,0.00025,2]
[422433244,1778944249000,-230.255192,0.00025,2]
[422433237,1778944249000,-373.120199,0.00025,2]
[422433266,1778944249000,-1763.02757,0.00025,2]
[422433238,1778944249000,-373.120199,0.00025,2]
[422433239,1778944249000,-222.13147767,0.00025,2]
[422433240,1778944249000,-200.0,0.00025,2]
[422433250,1778944249000,-500.0,0.00025,30]
[422433260,1778944249000,-151.0,0.00025,3]
[422433241,1778944249000,-361.895303,0.00025,2]
[422433254,1778944249000,-1540.0,0.00025,3]
[422433272,1778944249000,-1540.0,0.00025,3]
[422433249,1778944249000,-739.96426354,0.00025,2]
[422433263,1778944249000,-1540.0,0.00025,3]
[422433261,1778944249000,-1540.0,0.00025,3]
[422433271,1778944249000,-1540.0,0.00025,3]
[422433258,1778944249000,-1763.02757,0.00025,2]
[422433262,1778944249000,-151.0,0.00025,3]
[422433251,1778944249000,-930.0,0.00025,30]
[422433253,1778944249000,-1763.02757,0.00025,2]
[422433255,1778944249000,-1540.0,0.00025,3]
[422433252,1778944249000,-1763.02757,0.00025,2]
[422433257,1778944249000,-151.0,0.00025,3]
[422433256,1778944249000,-1540.0,0.00025,3]
[422433259,1778944249000,-1540.0,0.00025,3]
[422433338,1778944250000,-850.0,0.00026027,2]
[422433342,1778944250000,-1114.9035857,0.00026397,2]
[422433344,1778944250000,-2312.0,0.00026516,3]
[422433340,1778944250000,-1405.9,0.00026296,2]
[422433337,1778944250000,-850.0,0.00026027,2]
[422433334,1778944250000,-300.0,0.00026027,2]
[422433346,1778944250000,-2312.0,0.00026516,3]
[422433336,1778944250000,-290.0,0.00026027,2]
[422433335,1778944250000,-300.0,0.00026027,2]
[422433333,1778944250000,-644.0,0.00026027,2]
[422433328,1778944250000,-500.0,0.00026027,2]
[422433339,1778944250000,-711.0,0.00026027,2]
[422433345,1778944250000,-1193.0,0.00026516,3]
[422433355,1778944250000,-1048.93806121,0.00027,2]
[422433341,1778944250000,-5530.0,0.000263,5]
[422433348,1778944250000,-549.3158046,0.00026541,2]
[422433347,1778944250000,-648.503498,0.00026533,14]
[422433356,1778944250000,-530.0,0.00027,2]
[422433358,1778944250000,-2572.707196,0.0002701,2]
[422433352,1778944250000,-200.0,0.00026803,2]
[422433351,1778944250000,-150.0,0.00026703,2]
[422433353,1778944250000,-200.0,0.00026803,2]
[422433350,1778944250000,-150.0,0.00026703,2]
[422433354,1778944250000,-250.0,0.00027,2]
[422433357,1778944250000,-2000.0,0.00027,2]
[422433349,1778944250000,-350.0,0.00026631,2]
[422433332,1778944250000,-750.0,0.00026027,2]
[422433343,1778944250000,-464.76109,0.00026513,14]
[422433326,1778944250000,-254.5,0.00026027,7]
[422433315,1778944250000,-450.0,0.00025767,2]
[422433329,1778944250000,-500.0,0.00026027,2]
[422433360,1778944250000,-200.0,0.00027071,2]
[422433299,1778944250000,-150.0,0.00025307,2]
[422433300,1778944250000,-625.0,0.00025307,2]
[422433309,1778944250000,-217015.5234087,0.00025741,2]
[422433301,1778944250000,-1114.9035857,0.00025397,2]
[422433308,1778944250000,-350.0,0.00025709,2]
[422433310,1778944250000,-3045.5628055,0.00025741,2]
[422433302,1778944250000,-847.98,0.000254,7]
[422433311,1778944250000,-16752.6378629,0.00025741,2]
[422433303,1778944250000,-5530.0,0.000254,3]
[422433307,1778944250000,-549.3158046,0.00025685,2]
[422433306,1778944250000,-363.8,0.00025644,2]
[422433305,1778944250000,-350.0,0.00025553,2]
[422433330,1778944250000,-423.0,0.00026027,2]
[422433304,1778944250000,-1663.02,0.00025526,7]
[422433323,1778944250000,-350.0,0.00025883,2]
[422433313,1778944250000,-163.0,0.00025759,3]
[422433317,1778944250000,-4060.23,0.00025786,2]
[422433314,1778944250000,-437.4,0.00025767,2]
[422433316,1778944250000,-1350.52884405,0.00025777,4]
[422433320,1778944250000,-1462.64,0.00025786,2]
[422433319,1778944250000,-462.3,0.00025786,2]
[422433321,1778944250000,-350.0,0.00025805,2]
[422433322,1778944250000,-350.0,0.0002586,2]
[422433324,1778944250000,-400.29843382,0.00026,20]
[422433325,1778944250000,-550.0,0.00026,2]
[422433331,1778944250000,-750.0,0.00026027,2]
[422433327,1778944250000,-374.37,0.00026027,7]
[422433318,1778944250000,-2476.23,0.00025786,2]
[422433371,1778944250000,-4925.0,0.00027123,2]
[422433312,1778944250000,-86881.1104651,0.00025745,2]
[422433361,1778944250000,-412.0,0.000271,7]
[422433394,1778944250000,-668.65185757,0.00027379,2]
[422433390,1778944250000,-373.120205,0.00027309,2]
[422433391,1778944250000,-200.0,0.00027342,2]
[422433398,1778944250000,-151.0,0.0002739,2]
[422433400,1778944250000,-1158.867927,0.0002739,2]
[422433401,1778944250000,-1158.867927,0.0002739,2]
[422433402,1778944250000,-1158.867927,0.0002739,2]
[422433403,1778944250000,-1158.86792,0.0002739,2]
[422433404,1778944250000,-1763.02757,0.0002739,2]
[422433399,1778944250000,-151.0,0.0002739,2]
[422433409,1778944250000,-222.380445,0.0002739,2]
[422433411,1778944250000,-222.380445,0.0002739,2]
[422433408,1778944250000,-151.0,0.0002739,2]
[422433392,1778944250000,-200.0,0.00027342,2]
[422433410,1778944250000,-151.0,0.0002739,2]
[422433405,1778944250000,-1763.02757,0.0002739,2]
[422433407,1778944250000,-1763.02757,0.0002739,2]
[422433406,1778944250000,-1763.02757,0.0002739,2]
[422433413,1778944250000,-151.0,0.0002739,2]
[422433419,1778944250000,-250.185683,0.0002739,2]
[422433420,1778944250000,-974.77909132,0.00027397,7]
[422433414,1778944250000,-222.380445,0.0002739,2]
[422433418,1778944250000,-538.715813,0.0002739,2]
[422433412,1778944250000,-538.715813,0.0002739,2]
[422433421,1778944250000,-243.69477284,0.00027397,7]
[422433416,1778944250000,-222.380445,0.0002739,2]
[422433417,1778944250000,-250.185683,0.0002739,2]
[422433368,1778944250000,-230.255192,0.00027123,2]
[422433422,1778944250000,-321.77723357,0.00027397,2]
[422433393,1778944250000,-1663.02,0.00027368,7]
[422433415,1778944250000,-538.715813,0.0002739,2]
[422433388,1778944250000,-373.120199,0.00027309,2]
[422433389,1778944250000,-373.120199,0.00027309,2]
[422433370,1778944250000,-230.255185,0.00027123,2]
[422433359,1778944250000,-200.0,0.00027071,2]
[422433365,1778944250000,-361.895303,0.00027123,2]
[422433363,1778944250000,-361.895303,0.00027123,2]
[422433369,1778944250000,-230.255192,0.00027123,2]